fUST/lending_fUST_20250909
["ID","MTS","AMOUNT","RATE_DAILY","PERIOD"]
[384413610,1757394642939,-480.82,0.00013698,2]
[384413612,1757394642948,-443.88755772,0.00013698,2]
[384413614,1757394642960,-36.11244228,0.00013698,2]
[384413616,1757394642969,-849.85433288,0.00013698,2]
[384413619,1757394642981,-3157.4254304,0.00013698,2]
[384413621,1757394642993,-1077.81023672,0.00013698,2]
[384413623,1757394643003,-289.72900045,0.00013698,2]
[384413625,1757394643012,-480.0,0.00013698,2]
[384413627,1757394643022,-480.0,0.00013698,2]
[384413629,1757394643032,-1103.31956877,0.00013698,2]
[384414262,1757394706933,536.39898159,0.00025,30]
[384414269,1757394812169,168.0,0.00013133,2]
[384414270,1757394850214,500.0,0.00013157,2]
[384414274,1757394983564,666.0,0.00012617,2]
[384414275,1757395057926,500.0,0.00013156,2]
[384414285,1757395074232,500.0,0.00013156,2]
[384414288,1757395280232,2700.0,0.00013155,2]
[384414289,1757395383087,153.38377271,0.00013033,2]
[384414290,1757395443089,153.38377271,0.00013033,2]
[384414292,1757395494061,1500.0,0.00013153,2]
[384414293,1757395502085,-153.38377271,0.00013452,2]
[384414294,1757395502618,1500.0,0.00013153,2]
[384414295,1757395502726,153.38377271,0.00013049,2]
[384414296,1757395503587,153.38377271,0.00013452,2]
[384414297,1757395521383,209.4224662,0.00012657,2]
[384414301,1757395622943,153.38377271,0.00013049,2]
[384414303,1757395682885,153.38377271,0.00013049,2]
[384414307,1757395715501,752.32141971,0.00013162,2]
[384414309,1757395725649,752.32141971,0.00013162,2]
[384414310,1757395742972,153.38377271,0.00013049,2]
[384414313,1757395803071,153.38377271,0.00013049,2]
[384414323,1757395832580,-153.38377271,0.00013185,2]
[384414327,1757395832590,-153.38377271,0.00013318,2]
[384414329,1757395832599,-153.38377271,0.00013452,2]
[384414330,1757395832609,-211.81744303,0.00013596,2]
[384414331,1757395832622,-300.04897055,0.00013596,2]
[384414332,1757395832650,-688.13358642,0.00013596,2]
[384414333,1757395832660,-1200.0,0.00013596,2]
[384414334,1757395832670,-300.0,0.00013597,2]
[384414335,1757395832680,-300.0,0.00013597,2]
[384414336,1757395832689,-300.0,0.00013597,2]
[384414337,1757395832698,-300.0,0.00013597,2]
[384414338,1757395832708,-8777.45510572,0.00013598,2]
[384414339,1757395832718,-258.64889508,0.00013598,2]
[384414340,1757395832727,-3410.0373426,0.00013598,2]
[384414341,1757395832745,-22736.15181738,0.00013598,2]
[384414344,1757395836177,153.38377271,0.00013053,2]
[384414347,1757395838330,-357.39757858,0.00013598,2]
[384414348,1757395838391,-1969.34896998,0.00013598,2]
[384414349,1757395838402,-103.52767324,0.00013598,2]
[384414350,1757395838415,-417.15472785,0.0001366,2]
[384414351,1757395838425,-217.65034598,0.0001366,2]
[384414352,1757395838436,-160.0,0.0001366,2]
[384414353,1757395838445,-143.23725543,0.0001366,2]
[384414396,1757395840468,-703.5643267,0.0001366,2]
[384414398,1757395840478,-203.28455737,0.0001366,2]
[384414400,1757395840488,-233.05759179,0.0001366,2]
[384414402,1757395840498,-160.0,0.0001366,2]
[384414404,1757395840507,-530.79566296,0.0001366,2]
[384414406,1757395840516,-500.0,0.00013673,2]
[384414408,1757395840525,-500.0,0.00013673,2]
[384414410,1757395840535,-501.45101962,0.00013673,2]
[384414412,1757395840544,-500.91828264,0.00013673,2]
[384414414,1757395840553,-501.95754405,0.00013673,2]
[384414416,1757395840563,-500.0,0.00013673,2]
[384414419,1757395840572,-500.74954946,0.00013673,2]
[384414422,1757395840581,-258.57917369,0.00013673,2]
[384414424,1757395840590,-294.95390123,0.00013688,2]
[384414426,1757395840599,-312.77237701,0.00013688,2]
[384414428,1757395840609,-500.0,0.00013688,2]
[384414430,1757395840619,-500.0,0.00013688,2]
[384414433,1757395840629,-500.0,0.00013688,2]
[384414434,1757395840639,-339.84092591,0.00013688,2]
[384414436,1757395840649,-500.0,0.00013688,2]
[384414439,1757395840659,-500.0,0.00013688,2]
[384414440,1757395840668,-500.0,0.00013688,2]
[384414443,1757395840678,-500.0,0.00013688,2]
[384414444,1757395840688,-500.0,0.00013688,2]
[384414446,1757395840699,-500.0,0.00013688,2]
[384414449,1757395840708,-458.14703557,0.00013688,2]
[384414452,1757395840731,-41.85296443,0.00013688,2]
[384414454,1757395840740,-500.0,0.00013688,2]
[384414456,1757395840749,-500.0,0.00013688,2]
[384414458,1757395840759,-500.0,0.00013688,2]
[384414460,1757395840768,-500.0,0.00013688,2]
[384414462,1757395840777,-371.09645834,0.00013688,2]
[384414464,1757395840786,-459.44379037,0.00013688,2]
[384414466,1757395840795,-500.0,0.00013688,2]
[384414468,1757395840805,-500.0,0.00013688,2]
[384414470,1757395840814,-500.0,0.00013688,2]
[384414472,1757395840824,-500.0,0.00013688,2]
[384414474,1757395840833,-500.0,0.00013688,2]
[384414476,1757395840842,-500.0,0.00013688,2]
[384414478,1757395840851,-500.0,0.00013688,2]
[384414480,1757395840860,-508.38116053,0.00013688,2]
[384414482,1757395840870,-500.0,0.00013688,2]
[384414484,1757395840879,-500.0,0.00013688,2]
[384414486,1757395840888,-500.0,0.00013688,2]
[384414488,1757395840898,-500.0,0.00013688,2]
[384414490,1757395840908,-500.0,0.00013688,2]
[384414492,1757395840917,-500.0,0.00013688,2]
[384414494,1757395840927,-500.0,0.00013688,2]
[384414496,1757395840936,-500.0,0.00013688,2]
[384414498,1757395840946,-500.0,0.00013688,2]
[384414500,1757395840955,-500.0,0.00013688,2]
[384414502,1757395840964,-500.0,0.00013688,2]
[384414504,1757395840974,-500.0,0.00013688,2]
[384414506,1757395840983,-500.0,0.00013688,2]
[384414508,1757395840992,-604.12279881,0.00013688,2]
[384414510,1757395841003,-500.0,0.00013688,2]
[384414512,1757395841015,-500.0,0.00013688,2]
[384414515,1757395841025,-500.0,0.00013688,2]
[384414517,1757395841035,-500.0,0.00013688,2]
[384414519,1757395841044,-500.0,0.00013688,2]
[384414521,1757395841054,-500.0,0.00013688,2]
[384414523,1757395841063,-500.0,0.00013688,2]
[384414525,1757395841072,-500.0,0.00013688,2]
[384414527,1757395841081,-500.0,0.00013688,2]
[384414529,1757395841091,-500.0,0.00013688,2]
[384414531,1757395841100,-500.0,0.00013688,2]
[384414533,1757395841109,-500.0,0.00013688,2]
[384414535,1757395841119,-157.0,0.00013696,2]
[384414537,1757395841128,-850.237,0.00013696,2]
[384414539,1757395841136,-500.0,0.00013697,2]
[384414541,1757395841146,-358.81016458,0.00013697,2]
[384414543,1757395841155,-489.63130522,0.00013698,2]
[384414545,1757395841164,-157.0,0.00013698,2]
[384414547,1757395841173,-480.0,0.00013698,2]
[384414549,1757395841182,-480.0,0.00013698,2]
[384414550,1757395841191,-489.68317551,0.00013698,2]
[384414552,1757395841201,-480.0,0.00013698,2]
[384414555,1757395841210,-492.72059287,0.00013698,2]
[384414557,1757395841219,-480.0,0.00013698,2]
[384414558,1757395841229,-480.0,0.00013698,2]
[384414560,1757395841238,-480.0,0.00013698,2]
[384414562,1757395841247,-480.0,0.00013698,2]
[384414565,1757395841259,-480.0,0.00013698,2]
[384414567,1757395841269,-480.0,0.00013698,2]
[384414569,1757395841278,-438.53041166,0.00013698,2]
[384414571,1757395841287,-480.0,0.00013698,2]
[384414573,1757395841296,-480.0,0.00013698,2]
[384414575,1757395841306,-480.0,0.00013698,2]
[384414577,1757395841315,-480.0,0.00013698,2]
[384414579,1757395841324,-480.0,0.00013698,2]
[384414581,1757395841334,-609.07107543,0.00013698,2]
[384414583,1757395841344,-480.0,0.00013698,2]
[384414585,1757395841353,-480.0,0.00013698,2]
[384414587,1757395841362,-480.0,0.00013698,2]
[384414589,1757395841371,-480.0,0.00013698,2]
[384414591,1757395841381,-480.0,0.00013698,2]
[384414593,1757395841390,-480.0,0.00013698,2]
[384414595,1757395841399,-480.0,0.00013698,2]
[384414597,1757395841408,-586.54946957,0.00013698,2]
[384414599,1757395841417,-484.31076592,0.00013698,2]
[384414601,1757395841426,-480.0,0.00013698,2]
[384414603,1757395841436,-487.8783508,0.00013698,2]
[384414605,1757395841445,-480.0,0.00013698,2]
[384414607,1757395841454,-482.72145109,0.00013698,2]
[384414609,1757395841464,-480.0,0.00013698,2]
[384414611,1757395841473,-229.16497638,0.00013698,2]
[384414613,1757395841482,-480.0,0.00013698,2]
[384414615,1757395841491,-480.0,0.00013698,2]
[384414617,1757395841500,-480.0,0.00013698,2]
[384414619,1757395841510,-485.37766183,0.00013698,2]
[384414621,1757395841519,-480.0,0.00013698,2]
[384414623,1757395841528,-480.0,0.00013698,2]
[384414625,1757395841537,-480.0,0.00013698,2]
[384414627,1757395841546,-357.33783804,0.00013698,2]
[384414629,1757395841555,-485.84718806,0.00013698,2]
[384414631,1757395841564,-480.0,0.00013698,2]
[384414633,1757395841574,-480.0,0.00013698,2]
[384414635,1757395841583,-480.0,0.00013698,2]
[384414637,1757395841591,-480.0,0.00013698,2]
[384414638,1757395841601,-480.0,0.00013698,2]
[384414640,1757395841610,-556.65047553,0.00013698,2]
[384414642,1757395841621,-544.45643146,0.00013698,2]
[384414645,1757395841631,-480.0,0.00013698,2]
[384414647,1757395841640,-482.60641857,0.00013698,2]
[384414649,1757395841650,-839.73,0.00013698,2]
[384414651,1757395841659,-488.56248896,0.00013698,2]
[384414652,1757395841670,-488.44096721,0.00013698,2]
[384414654,1757395841679,-483.47349055,0.00013698,2]
[384414656,1757395841688,-482.12983674,0.00013698,2]
[384414658,1757395841698,-480.0,0.00013698,2]
[384414660,1757395841707,-488.66441413,0.00013698,2]
[384414662,1757395841717,-483.80790252,0.00013698,2]
[384414664,1757395841727,-484.99883249,0.00013698,2]
[384414666,1757395841736,-524.58502884,0.00013698,2]
[384414668,1757395841746,-480.0,0.00013698,2]
[384414670,1757395841756,-485.03416015,0.00013698,2]
[384414672,1757395841766,-493.97466047,0.00013698,2]
[384414674,1757395841776,-487.39087611,0.00013698,2]
[384414676,1757395841785,-433.04446702,0.00013698,2]
[384414678,1757395841795,-480.0,0.00013698,2]
[384414681,1757395841806,-482.66532716,0.00013698,2]
[384414683,1757395841815,-501.35900831,0.00013698,2]
[384414684,1757395841824,-482.49412254,0.00013698,2]
[384414687,1757395841834,-555.11,0.00013698,2]
[384414688,1757395841845,-480.0,0.00013698,2]
[384414690,1757395841854,-480.0,0.00013698,2]
[384414692,1757395841863,-606.2,0.00013698,2]
[384414694,1757395841873,-480.0,0.00013698,2]
[384414696,1757395841882,-480.0,0.00013698,2]
[384414698,1757395841892,-485.5821827,0.00013698,2]
[384414700,1757395841901,-480.0,0.00013698,2]
[384414702,1757395841910,-488.92,0.00013698,2]
[384414704,1757395841919,-480.0,0.00013698,2]
[384414706,1757395841928,-571.46243289,0.00013698,2]
[384414708,1757395841937,-480.0,0.00013698,2]
[384414710,1757395841947,-480.0,0.00013698,2]
[384414712,1757395841956,-480.0,0.00013698,2]
[384414714,1757395841965,-492.1758059,0.00013698,2]
[384414716,1757395841975,-485.57307372,0.00013698,2]
[384414718,1757395841984,-480.0,0.00013698,2]
[384414720,1757395841993,-480.0,0.00013698,2]
[384414722,1757395842003,-483.99356591,0.00013698,2]
[384414724,1757395842011,-486.16179208,0.00013698,2]
[384414726,1757395842020,-480.0,0.00013698,2]
[384414728,1757395842034,-622.45696599,0.00013698,2]
[384414730,1757395842054,-480.0,0.00013698,2]
[384414732,1757395842075,-482.87922254,0.00013698,2]
[384414734,1757395842096,-513.68,0.00013698,2]
[384414736,1757395842118,-534.2598497,0.00013698,2]
[384414738,1757395842140,-485.42015146,0.00013698,2]
[384414740,1757395842162,-480.0,0.00013698,2]
[384414742,1757395842185,-492.1670562,0.00013698,2]
[384414744,1757395842209,-433.8127558,0.00013698,2]
[384414746,1757395842235,-480.0,0.00013698,2]
[384414748,1757395842258,-480.0,0.00013698,2]
[384414750,1757395842279,-480.0,0.00013698,2]
[384414752,1757395842303,-489.61290006,0.00013698,2]
[384414754,1757395842325,-480.0,0.00013698,2]
[384414756,1757395842347,-480.0,0.00013698,2]
[384414758,1757395842356,-64.74611152,0.00013698,2]
[384415112,1757395846674,-283.61371932,0.00013698,2]
[384415113,1757395846695,-480.0,0.00013698,2]
[384415114,1757395846706,-180.91168149,0.00013698,2]
[384415115,1757395846716,-525.14,0.00013698,2]
[384415116,1757395846726,-500.0,0.00013698,2]
[384415117,1757395846735,-157.0,0.00013698,2]
[384415118,1757395846745,-480.0,0.00013698,2]
[384415119,1757395846755,-508.85,0.00013698,2]
[384415120,1757395846765,-480.0,0.00013698,2]
[384415121,1757395846774,-164.15733929,0.00013698,2]
[384415122,1757395846785,-480.06145799,0.00013698,2]
[384415123,1757395846795,-480.25352931,0.00013698,2]
[384415124,1757395846805,-480.0,0.00013698,2]
[384415125,1757395846814,-480.0,0.00013698,2]
[384415126,1757395846824,-480.0,0.00013698,2]
[384415127,1757395846833,-483.22182282,0.00013698,2]
[384415128,1757395846843,-480.0,0.00013698,2]
[384415129,1757395846852,-481.85380756,0.00013698,2]
[384415131,1757395846863,-480.0,0.00013698,2]
[384415132,1757395846873,-109.77570471,0.00013698,2]
[384415138,1757395974508,248.64,0.00012329,2]
[384415139,1757395982129,153.38377271,0.00013049,2]
[384415140,1757395982870,153.38377271,0.00013048,2]
[384415141,1757396063272,1255.0,0.00013147,2]
[384415142,1757396074768,153.38377271,0.00013048,2]
[384415143,1757396087893,1255.0,0.00013147,2]
[384415144,1757396102383,153.38377271,0.00013048,2]
[384415145,1757396111342,1255.0,0.00013147,2]
[384415146,1757396114632,59313.6796645,0.00012647,2]
[384415147,1757396134458,1255.0,0.00013147,2]
[384415148,1757396157654,1255.0,0.00013147,2]
[384415149,1757396162366,153.38377271,0.00013048,2]
[384415150,1757396180577,1255.0,0.00013147,2]
[384415151,1757396203854,1255.0,0.00013147,2]
[384415152,1757396222196,153.38377271,0.00013048,2]
[384415153,1757396226845,1255.0,0.00013147,2]
[384415154,1757396243123,1255.0,0.00013147,2]
[384415155,1757396282433,153.38377271,0.00013048,2]
[384415157,1757396342228,153.3837727,0.00013048,2]
[384415159,1757396387559,5322.4682413,0.00012651,2]
[384415160,1757396402210,153.38377271,0.00013048,2]
[384415162,1757396452123,153.38377271,0.00013052,2]
[384415163,1757396462309,153.3837727,0.00013034,2]
[384415164,1757396469703,153.38377271,0.00013052,2]
[384415165,1757396494583,153.38377271,0.00013169,2]
[384415166,1757396517998,153.38377271,0.00013169,2]
[384415167,1757396522223,153.38377271,0.00013034,2]
[384415168,1757396537005,457.5,0.00012329,2]
[384415169,1757396541063,153.38377271,0.00013169,2]
[384415170,1757396547501,771.88,0.00012329,2]
[384415171,1757396557931,171.52,0.00012329,2]
[384415172,1757396564497,153.38377271,0.00013169,2]
[384415173,1757396568350,237.15,0.00012329,2]
[384415174,1757396578766,300.5,0.00012329,2]
[384415175,1757396582144,153.38377271,0.00013034,2]
[384415176,1757396588329,153.38377271,0.00013169,2]
[384415177,1757396589237,250.41,0.00012329,2]
[384415178,1757396610579,434.09,0.00012329,2]
[384415179,1757396610846,153.38377271,0.00013169,2]
[384415180,1757396620962,845.59,0.00012329,2]
[384415181,1757396633625,153.38377271,0.00013169,2]
[384415182,1757396641597,414.95,0.00012329,2]
[384415183,1757396642414,153.3837727,0.00013034,2]
[384415184,1757396652526,899.07,0.00012329,2]
[384415185,1757396657338,153.38377271,0.00013169,2]
[384415186,1757396666258,153.38377271,0.00013169,2]
[384415187,1757396673236,808.46,0.00012329,2]
[384415188,1757396692632,153.38377271,0.00013169,2]
[384415189,1757396694142,344.27,0.00012329,2]
[384415190,1757396702520,153.38377271,0.00013034,2]
[384415191,1757396704545,742.59,0.00012329,2]
[384415192,1757396715294,353.33,0.00012329,2]
[384415193,1757396716668,353.33,0.00012205,2]
[384415194,1757396725760,294.44,0.00012329,2]
[384415195,1757396736207,245.37,0.00012329,2]
[384415196,1757396740486,153.38377271,0.00013169,2]
[384415197,1757396740811,3280.44,0.00028782,60]
[384415198,1757396757226,374.86,0.00012329,2]
[384415199,1757396762202,153.3837727,0.00013034,2]
[384415200,1757396763767,153.38377271,0.00013169,2]
[384415201,1757396778174,852.0,0.00012329,2]
[384415202,1757396787230,153.38377271,0.00013169,2]
[384415203,1757396810473,153.38377271,0.00013169,2]
[384415204,1757396822309,153.3837727,0.00013035,2]
[384415207,1757396833414,235.71986769,0.00028782,120]
[384415208,1757396834293,153.38377271,0.00013169,2]
[384415209,1757396858051,153.38377271,0.00013169,2]
[384415210,1757396874258,153.38377271,0.00013169,2]
[384415211,1757396882178,153.38377271,0.00013035,2]
[384415212,1757396898886,153.38377271,0.00013171,2]
[384415213,1757396922635,153.38377271,0.00013171,2]
[384415219,1757396942240,153.38377271,0.00013035,2]
[384415220,1757396944853,153.38377271,0.00013171,2]
[384415221,1757396968217,153.38377271,0.00013171,2]
[384415222,1757396991253,153.38377271,0.00013171,2]
[384415226,1757397002517,153.3837727,0.00013035,2]
[384415227,1757397014293,153.38377271,0.00013171,2]
[384415255,1757397032856,-153.38377271,0.00013304,2]
[384415257,1757397032870,-222.38601468,0.00013473,2]
[384415260,1757397032885,-27.61398532,0.00013473,2]
[384415262,1757397032896,-579.97115207,0.00013596,2]
[384415278,1757397038558,-620.02884793,0.0001346,2]
[384415279,1757397038570,-620.02884793,0.00013596,2]
[384415280,1757397038582,-955.0,0.00013597,2]
[384415281,1757397038593,-752.32141971,0.00013597,2]
[384415282,1757397038604,-1894.56247035,0.00013598,2]
[384415283,1757397038618,-2683.89436052,0.00013598,2]
[384415284,1757397038632,-1273.17990627,0.00013598,2]
[384415285,1757397038642,-300.0,0.00013654,2]
[384415286,1757397038652,-108.20793853,0.00013655,2]
[384415287,1757397038664,-51.79206147,0.00013655,2]
[384415288,1757397038673,-160.0,0.00013655,2]
[384415289,1757397038682,-211.99960784,0.00013655,2]
[384415290,1757397038694,-270.13541551,0.00013655,2]
[384415291,1757397039609,-48.66063961,0.00013655,2]
[384415292,1757397039618,-203.28455737,0.00013655,2]
[384415293,1757397039627,-622.59631725,0.00013655,2]
[384415302,1757397043698,-224.20526488,0.00013655,2]
[384415303,1757397043707,-233.05759179,0.00013655,2]
[384415304,1757397043716,-417.15472785,0.00013655,2]
[384415305,1757397043726,-217.65034598,0.00013655,2]
[384415306,1757397043735,-500.0,0.00013688,2]
[384415307,1757397043744,-680.189,0.0001369,2]
[384415308,1757397043753,-500.0,0.00013697,2]
[384415309,1757397043763,-207.89960648,0.00013697,2]
[384415310,1757397043771,-500.0,0.00013697,2]
[384415311,1757397043781,-500.0,0.00013697,2]
[384415312,1757397043790,-500.0,0.00013697,2]
[384415313,1757397043799,-500.0,0.00013697,2]
[384415314,1757397043808,-500.0,0.00013697,2]
[384415315,1757397043818,-500.0,0.00013697,2]
[384415316,1757397043827,-500.0,0.00013697,2]
[384415317,1757397043837,-500.0,0.00013697,2]
[384415319,1757397043847,-500.0,0.00013697,2]
[384415320,1757397043856,-500.0,0.00013697,2]
[384415321,1757397043866,-500.0,0.00013697,2]
[384415322,1757397043876,-500.0,0.00013697,2]
[384415323,1757397043886,-500.0,0.00013697,2]
[384415324,1757397043895,-500.0,0.00013697,2]
[384415325,1757397043904,-500.0,0.00013697,2]
[384415326,1757397043914,-500.0,0.00013697,2]
[384415327,1757397043923,-360.41227989,0.00013697,2]
[384415328,1757397043932,-500.0,0.00013697,2]
[384415329,1757397043942,-500.0,0.00013697,2]
[384415330,1757397043951,-500.0,0.00013697,2]
[384415331,1757397043961,-500.0,0.00013697,2]
[384415332,1757397043970,-500.0,0.00013697,2]
[384415333,1757397043980,-500.0,0.00013697,2]
[384415334,1757397043989,-500.0,0.00013697,2]
[384415335,1757397043998,-500.0,0.00013697,2]
[384415336,1757397044008,-500.0,0.00013697,2]
[384415337,1757397044017,-500.0,0.00013697,2]
[384415338,1757397044026,-500.0,0.00013697,2]
[384415339,1757397044036,-500.0,0.00013697,2]
[384415340,1757397044046,-500.0,0.00013697,2]
[384415341,1757397044055,-500.0,0.00013697,2]
[384415342,1757397044064,-176.26856089,0.00013697,2]
[384415343,1757397044073,-500.0,0.00013697,2]
[384415344,1757397044083,-500.0,0.00013697,2]
[384415345,1757397044093,-500.0,0.00013697,2]
[384415346,1757397044102,-500.0,0.00013697,2]
[384415347,1757397044111,-500.0,0.00013697,2]
[384415348,1757397044121,-500.0,0.00013697,2]
[384415349,1757397044131,-500.0,0.00013697,2]
[384415350,1757397044140,-500.0,0.00013697,2]
[384415351,1757397044149,-500.0,0.00013697,2]
[384415352,1757397044158,-500.0,0.00013697,2]
[384415353,1757397044167,-500.0,0.00013697,2]
[384415354,1757397044177,-500.0,0.00013697,2]
[384415355,1757397044187,-500.0,0.00013697,2]
[384415356,1757397044196,-500.0,0.00013697,2]
[384415357,1757397044206,-500.0,0.00013697,2]
[384415358,1757397044215,-500.0,0.00013697,2]
[384415359,1757397044226,-500.0,0.00013697,2]
[384415360,1757397044240,-500.0,0.00013697,2]
[384415361,1757397044249,-500.0,0.00013697,2]
[384415362,1757397044260,-500.0,0.00013697,2]
[384415363,1757397044269,-500.0,0.00013697,2]
[384415364,1757397044279,-563.77184664,0.00013697,2]
[384415365,1757397044288,-500.0,0.00013697,2]
[384415366,1757397044298,-500.0,0.00013697,2]
[384415367,1757397044308,-500.0,0.00013697,2]
[384415368,1757397044318,-500.0,0.00013697,2]
[384415369,1757397044328,-500.0,0.00013697,2]
[384415370,1757397044337,-500.0,0.00013697,2]
[384415371,1757397044347,-500.0,0.00013697,2]
[384415372,1757397044357,-500.0,0.00013697,2]
[384415373,1757397044366,-480.9476705,0.00013698,2]
[384415374,1757397044376,-480.0,0.00013698,2]
[384415375,1757397044385,-480.0,0.00013698,2]
[384415376,1757397044395,-483.40286325,0.00013698,2]
[384415377,1757397044405,-487.05139014,0.00013698,2]
[384415378,1757397044414,-483.51959116,0.00013698,2]
[384415379,1757397044423,-480.0,0.00013698,2]
[384415380,1757397044434,-481.01273808,0.00013698,2]
[384415381,1757397044443,-348.37685643,0.00013698,2]
[384415387,1757397122153,153.3837727,0.00013036,2]
[384415388,1757397131068,248.09837211,0.00028782,120]
[384415392,1757397241637,800.0,0.00013043,2]
[384415393,1757397257353,800.0,0.00013043,2]
[384415394,1757397265746,800.0,0.00013043,2]
[384415395,1757397282193,800.0,0.00013043,2]
[384415396,1757397291496,800.0,0.00013043,2]
[384415397,1757397304622,-800.0,0.00013175,2]
[384415398,1757397304649,-800.0,0.00013202,2]
[384415399,1757397304687,-800.0,0.0001327,2]
[384415400,1757397304715,-800.0,0.00013306,2]
[384415401,1757397304790,-800.0,0.00013367,2]
[384415402,1757397304837,-800.0,0.00013368,2]
[384415403,1757397304992,-800.0,0.0001344,2]
[384415404,1757397308825,800.0,0.00013339,2]
[384415405,1757397309235,179.52,0.00012329,2]
[384415406,1757397341830,7027.021686,0.00012651,2]
[384415409,1757397516316,800.0,0.00013074,2]
[384415428,1757397532763,800.0,0.00013074,2]
[384415429,1757397556398,168.0,0.00013087,2]
[384415430,1757397579192,168.0,0.00013087,2]
[384415431,1757397605376,168.0,0.00013087,2]
[384415432,1757397628841,168.0,0.00013087,2]
[384415437,1757397658735,168.0,0.00013087,2]
[384415440,1757397692034,168.0,0.00013087,2]
[384415442,1757397718322,168.0,0.00013087,2]
[384415443,1757397732898,1000.0,0.0002739,120]
[384415445,1757397745352,168.0,0.00013087,2]
[384415446,1757397748957,1000.0,0.0002739,120]
[384415447,1757397770713,168.0,0.00013087,2]
[384415448,1757397794620,168.0,0.00013087,2]
[384415449,1757397818067,168.0,0.00013087,2]
[384415450,1757397824993,179.6305192,0.00012752,2]
[384415451,1757397841646,168.0,0.00013087,2]
[384415452,1757397865819,168.0,0.00013087,2]
[384415453,1757397886702,224.8,0.00025,30]
[384415454,1757397888472,168.0,0.00013087,2]
[384415457,1757397911726,168.0,0.00013087,2]
[384415458,1757397920607,168.0,0.00013087,2]
[384415462,1757397949725,168.0,0.00013087,2]
[384415463,1757397956432,1151.0,0.00025,30]
[384415464,1757397978638,168.0,0.00013087,2]
[384415465,1757398004294,168.0,0.00013087,2]
[384415466,1757398027680,168.0,0.00013087,2]
[384415467,1757398050606,168.0,0.00013087,2]
[384415469,1757398075421,168.0,0.00013087,2]
[384415471,1757398101711,168.0,0.00013087,2]
[384415472,1757398125350,168.0,0.00013087,2]
[384415473,1757398150859,168.0,0.00013087,2]
[384415474,1757398175742,168.0,0.00013087,2]
[384415475,1757398200153,168.0,0.00013087,2]
[384415476,1757398223621,168.0,0.00013087,2]
[384415494,1757398231870,-168.0,0.00013219,2]
[384415496,1757398231879,-12258.30496042,0.0001333,2]
[384415500,1757398231929,-168499.9799972,0.0001333,2]
[384415508,1757398231989,-57284.86412314,0.0001333,2]
[384415510,1757398232001,-1335.13735634,0.0001333,2]
[384415574,1757398237791,-308.3086948,0.0001333,2]
[384415576,1757398237802,-455.70417096,0.0001333,2]
[384415700,1757398242883,-168.0,0.00013219,2]
[384415702,1757398242894,-121.54641168,0.0001333,2]
[384415799,1757398243832,-277.16578434,0.0001333,2]
[384416031,1757398245884,-2130.07128886,0.0001333,2]
[384416053,1757398246107,-6543.27543001,0.0001333,2]
[384416065,1757398266771,168.0,0.00013087,2]
[384416066,1757398291210,168.0,0.00013087,2]
[384416069,1757398315316,168.0,0.00013087,2]
[384416072,1757398338728,168.0,0.00013087,2]
[384416073,1757398360760,10000.0,0.0001261,2]
[384416074,1757398363269,168.0,0.00013087,2]